Cogmind - Beta 9.1 @@@ ROGUE MODE // 2019.10.24 @ 14:51:27 // Halloween2019/Abominations Player: Kyzrati Result: Destroyed by Lesser Abomination with Katana Performance ------------- Evolutions (2) 1000 Regions Visited (3) 600 Robots Destroyed (29) 145 Value Destroyed (1626) 1626 Prototype IDs (3) 60 Alien Tech Used (0) 0 Bonus (0) 0 TOTAL SCORE: 3431 Bonus ------- None Cogmind --------- Core Integrity 0/550 Matter 300/300 Energy 100/100 System Corruption 6% Temperature Cool (0) Location -8/Materials Parts ------- Power (1) Propulsion (3) Light Treads Light Treads Wheel Utility (4) Disposable Heat Sink Large Storage Unit High-capacity Storage Unit Weapon (3) Assault Rifle Shotgun Inventory (18) Light Ion Engine Light Treads Aluminum Leg Wheel Wheel Large Storage Unit Hacking Suite Hacking Suite Heavy EM Pulse Gun Light Assault Rifle Light Assault Rifle Improved Assault Rifle Grenade Launcher Mini Grenade Launcher Peak State ------------ Power Ion Engine Propulsion Wheel Compact Wheel Armored Wheel Utility Disposable Heat Sink Large Storage Unit High-capacity Storage Unit Transmission Jammer Weapon Improved Medium Laser Heavy Assault Rifle Improved Assault Rifle Inventory Light Ion Engine Light Treads Light Treads Large Storage Unit High-capacity Matter Pod Hacking Suite Hacking Suite Heavy EM Pulse Gun Assault Rifle Light Assault Rifle Light Assault Rifle Grenade Launcher Mini Grenade Launcher Mini Grenade Launcher [Rating: 22] Favorites ----------- Power Ion Engine Engine Ion Engine Propulsion Wheel Treads Light Treads Wheel Wheel Utility Large Storage Unit Device Disposable Heat Sink Storage Large Storage Unit Weapon Light Assault Rifle Energy Gun Improved Medium Laser Ballistic Gun Light Assault Rifle Launcher Mini Grenade Launcher Build | -11 -10 -9 -8 ------- Run | Scr Mat Mat Mat Slots Evolved 4 | . . 2 2 Power . | . . . . Propulsion 1 | . . 1 . Utility 2 | . . . 2 Weapon 1 | . . 1 . Parts Attached 44 | 6 3 12 23 Power 2 | 1 . . 1 Engine 2 | 1 . . 1 Core . | . . . . Reactor . | . . . . Propulsion 11 | 2 . 3 6 Treads 4 | . . 1 3 Leg . | . . . . Wheel 7 | 2 . 2 3 Hover . | . . . . Flight . | . . . . Utility 8 | 1 2 3 2 Device 3 | . . 2 1 Storage 5 | 1 2 1 1 Processor . | . . . . Hackware . | . . . . Protection . | . . . . Artifact . | . . . . Weapon 23 | 2 1 6 14 Energy Gun 2 | 1 . . 1 Energy Cannon . | . . . . Ballistic Gun 14 | 1 1 5 7 Ballistic Cannon . | . . . . Launcher 7 | . . 1 6 Special Weapon . | . . . . Impact Weapon . | . . . . Slashing Weapon . | . . . . Piercing Weapon . | . . . . Special Melee Weapon . | . . . . Unidentified Prototypes 3 | . . 1 2 Parts Lost 12 | . . 1 11 Power 1 | . . . 1 Propulsion 6 | . . 1 5 Utility 1 | . . . 1 Weapon 4 | . . . 4 Highest Loss Streak 4 | . . 1 4 Average Slot Usage (%) 93 | . 97 98 89 Engine 10 | . 14 11 8 Treads 4 | . . . 7 Wheel 23 | . 28 31 18 Device 7 | . . 6 10 Storage 19 | . 26 15 17 Energy Gun 3 | . 6 . 4 Ballistic Gun 23 | . 21 32 18 Launcher 1 | . . . 3 Naked Turns . | . . . . Heaviest Build 64 | 12 40 44 64 Greatest Support 40 | 26 26 38 40 Greatest Overweight (x) 5 | 3 1 1 5 Average Overweight (x) 1 | . . . 2 Largest Inventory Capacity 18 | 6 16 16 18 Average Capacity 15 | 5 14 12 17 Most Carried 16 | 6 12 16 15 Average Carried 10 | 3 9 11 11 Final Capacity 18 | . . . 18 Final Carried 14 | . . . 14 Class Distribution -------------------- 53% | Gunner 46% | Mutant Dominant Class ---------------- Mutant | -10/Materials Gunner | -9/Materials Gunner | -8/Materials Resources | -11 -10 -9 -8 ----------- Run | Scr Mat Mat Mat Matter Collected 1645 | 214 149 482 800 Remotely . | . . . . Salvage Created 936 | 69 58 283 526 Parts 37 | . 3 9 25 Haulers Intercepted 1 | . . 1 . Recyclers Shooed 1 | . 1 . . Parts Field Recycled . | . . . . Retrieved Matter . | . . . . Parts Self-Destructed . | . . . . Prevented . | . . . . Kills | -11 -10 -9 -8 ------- Run | Scr Mat Mat Mat Combat Hostiles Destroyed 22 | . 1 5 16 Guns 10 | . 1 3 6 AOE 12 | . . 2 10 Classes Destroyed 5 | 1 1 2 1 Worker 2 | . . 2 . Hauler 1 | . . 1 . Recycler 2 | 1 . . 1 Abomination 22 | . 1 5 16 Anomaly 2 | . . . 2 Best Kill Streak 9 | 1 1 4 9 Combat Bots Only 6 | . 1 3 6 Max Kills in Single Turn 2 | 1 1 1 2 Gunslinging . | . . . . Exploded 1 | . . 1 1 Melee . | . . . . Uniques/NPCs Destroyed . | . . . . Combat | -11 -10 -9 -8 -------- Run | Scr Mat Mat Mat Damage Taken 3840 | . 73 200 3567 Core 642 | . 17 52 573 Absorbed by Shields . | . . . . Core Remaining (%) 93 | 100 93 87 . Volleys Fired 120 | 4 16 23 77 Largest 3 | 2 2 3 3 Hottest 102 | 60 60 66 102 Shots Fired 290 | 8 32 65 185 Gun 250 | 8 32 63 147 Cannon . | . . . . Launcher 40 | . . 2 38 Special . | . . . . Kinetic 199 | 4 29 63 103 Thermal 51 | 4 3 . 44 Explosive 40 | . . 2 38 Electromagnetic . | . . . . Robot Hit Streak 15 | 4 3 10 15 Robot Miss Streak 6 | 1 6 4 3 Penetration Max . | . . . . Secondary Targets 2 | . . . 2 Max Gunslinging Chain 1 | . . . 1 Shots Hit Robots 188 | 6 17 38 127 Core Hits 103 | 2 5 17 79 Critical Hits . | . . . . Critical Kills . | . . . . Critical Parts Destroyed . | . . . . Melee Attacks . | . . . . Impact . | . . . . Slashing . | . . . . Piercing . | . . . . Sneak Attacks . | . . . . Combat Hostiles . | . . . . Follow-up Attacks . | . . . . Damage Inflicted 4712 | 70 128 675 3839 Guns 2133 | 70 128 457 1478 Cannons . | . . . . Explosions 2579 | . . 218 2361 Melee . | . . . . Ramming . | . . . . Kinetic 1455 | 38 116 457 844 Thermal 678 | 32 12 . 634 Explosive 2579 | . . 218 2361 Electromagnetic . | . . . . Impact . | . . . . Slashing . | . . . . Piercing . | . . . . Highest Corruption 6 | . . . 6 Average Corruption 2 | . . . 2 Corruption Purged . | . . . . Effects 11 | . . . 11 Message Errors 2 | . . . 2 Matter Fused 1 | . . . 1 Heat Flow Errors 2 | . . . 2 Energy Discharges 2 | . . . 2 Data Loss (minor) 1 | . . . 1 Targeting Errors 3 | . . . 3 Overload Shots . | . . . . Overflow Damage 48 | . . . 48 Projectiles . | . . . . Explosions 48 | . . . 48 Melee . | . . . . Knockbacks . | . . . . Impact . | . . . . Kinetic . | . . . . Secondary . | . . . . Self-Inflicted Damage 210 | . . . 210 Shots 8 | . . . 8 Rammed . | . . . . Targets Rammed . | . . . . Kicked . | . . . . Crushed . | . . . . Highest Temperature 670 | . 20 670 206 Average Temperature 118 | . 20 184 84 Received Heat Transfer 900 | . . 54 846 Effects 12 | . . 12 . Shutdowns 2 | . . 2 . Energy Bleed 2 | . . 2 . Interference 3 | . . 3 . Damage (major) 4 | . . 4 . Damage (core) 1 | . . 1 . Siege Activations . | . . . . Robots Corrupted . | . . . . Combat Hostiles . | . . . . Parts Fried 1 | . . . 1 Impact Corruptions . | . . . . Robots Melted . | . . . . Combat Hostiles . | . . . . Parts Melted . | . . . . Heat Transferred 370 | 75 25 . 270 Parts Sabotaged . | . . . . Parts Stolen . | . . . . Parts Stripped . | . . . . Power Chain Reactions . | . . . . Missiles Intercepted . | . . . . Alert | -11 -10 -9 -8 ------- Run | Scr Mat Mat Mat Peak Influence 232 | 5 8 52 232 Average Influence 44 | . 3 17 77 Maximum Alert Level 1 | . . . 1 Low Security (%) 93 | . . . . Level 1 6 | . . . . Level 2 . | . . . . Level 3 . | . . . . Level 4 . | . . . . Level 5 . | . . . . High Security . | . . . . Max Security . | . . . . Squads Dispatched 21 | . 3 3 15 Investigation 6 | . 1 1 4 Extermination . | . . . . Reinforcement 4 | . 2 2 . Assault 7 | . . . 7 Garrison 4 | . . . 4 Intercept . | . . . . Construction Impeded . | . . . . Haulers Reinforced . | . . . . Stealth | -11 -10 -9 -8 --------- Run | Scr Mat Mat Mat Distress Signals 18 | . 1 10 7 Communications Jammed . | . . . . Distress Signals . | . . . . Times Spotted 53 | . 3 9 41 Peak Tracking Total 8 | . 3 3 8 Tactical Retreats 11 | . 2 2 7 Traps | -11 -10 -9 -8 ------- Run | Scr Mat Mat Mat Traps Triggered 2 | . 1 1 . Indirectly . | . . . . Trap Hack Attempts . | . . . . Triggered . | . . . . Disarmed . | . . . . Reprogrammed . | . . . . Reused . | . . . . Traps Extracted . | . . . . Installed . | . . . . Triggered . | . . . . Machines | -11 -10 -9 -8 ---------- Run | Scr Mat Mat Mat Machines Disabled 7 | . . 2 5 Max in Single Turn 2 | . . 1 2 Machines Sabotaged . | . . . . Garrisons Compromised . | . . . . Overloaded Fab Kills . | . . . . Fab Network Shutdowns . | . . . . Hacking | -11 -10 -9 -8 --------- Run | Scr Mat Mat Mat Machines Accessed 9 | . 3 2 4 Terminals 9 | . 3 2 4 Fabricators . | . . . . Repair Stations . | . . . . Recycling Units . | . . . . Scanalyzers . | . . . . Garrison Access . | . . . . Total Hacks 21 | . 6 5 10 Successful 14 | . 5 1 8 Failed 7 | . 1 4 2 Catastrophic . | . . . . Database Lockouts . | . . . . Manual 15 | . 4 5 6 Terminals 21 | . 6 5 10 Fabricators . | . . . . Repair Stations . | . . . . Recycling Units . | . . . . Scanalyzers . | . . . . Garrison Access . | . . . . Terminal Hacks 7 | . 2 . 5 Branch Access Points 1 | . . . 1 Unreport Threat 1 | . . . 1 Hauler Manifests 1 | . . . 1 Zone Layout 4 | . 2 . 2 Fabricator Hacks . | . . . . Repair Station Hacks . | . . . . Recycling Unit Hacks . | . . . . Scanalyzer . | . . . . Garrison Access Hacks . | . . . . Unauthorized Hacks 19 | . 6 5 8 Terminals 7 | . 3 1 3 Track 7 | . 3 1 3 Fabricators . | . . . . Repair Stations . | . . . . Recycling Units . | . . . . Scanalyzers . | . . . . Garrison Access . | . . . . Data Cores Recovered . | . . . . Used . | . . . . Hacking Detections 7 | . 2 2 3 Full Trace Events 3 | . . 1 2 Feedback Events . | . . . . Feedback Blocked . | . . . . Robot Schematics Acquired . | . . . . Robots Built . | . . . . Matter . | . . . . Time . | . . . . Total Robot Build Rating . | . . . . Part Schematics Acquired . | . . . . Parts Built . | . . . . Matter . | . . . . Time . | . . . . Total Part Build Rating . | . . . . Parts Repaired . | . . . . Time . | . . . . Parts Recycled . | . . . . Recycled Matter . | . . . . Retrieved Matter . | . . . . Retrieved Components . | . . . . Parts Scanalyzed . | . . . . Part Schematics Acquired . | . . . . Parts Damaged . | . . . . Bothacking | -11 -10 -9 -8 ------------ Run | Scr Mat Mat Mat Used RIF Installer . | . . . . Robots Hacked . | . . . . Non-combat . | . . . . Combat . | . . . . Robot Hacks Applied . | . . . . Relay Couplers Released . | . . . . Robots Rewired . | . . . . Allies Hacked . | . . . . Hacks Repelled . | . . . . Allies | -11 -10 -9 -8 -------- Run | Scr Mat Mat Mat Total Allies . | . . . . Largest Group . | . . . . Highest-Rated Group . | . . . . Highest-Rated Ally . | . . . . Total Orders . | . . . . Ally Attacks . | . . . . Total Damage . | . . . . Kills . | . . . . Allies Corrupted . | . . . . Allies Melted . | . . . . Intel | -11 -10 -9 -8 ------- Run | Scr Mat Mat Mat Robot Analysis Total . | . . . . Derelict Logs Recovered . | . . . . Drone Launches . | . . . . Drone Recoveries . | . . . . Exploration | -11 -10 -9 -8 ------------- Run | Scr Mat Mat Mat Turns Passed 1519 | 63 300 400 756 Spaces Moved 981 | 39 249 301 392 Core 10 | 10 . . . Treads 7 | . . . 7 Legs . | . . . . Wheels 964 | 29 249 301 385 Hover . | . . . . Flight . | . . . . Fastest Speed 50 | 50 90 90 90 Average Speed 102 | 92 98 94 112 Slowest Speed 200 | 200 100 100 180 Overloaded Moves . | . . . . Propulsion Burnouts . | . . . . Robots Hopped . | . . . . Cave-ins Triggered . | . . . . Exploration Rate (%) 33 | 4 49 47 34 Regions Visited 3 Branch Regions . Pre-discovered Areas . | . . . . Known Exits Taken . | . . . . Unknown Exits Taken 3 | 1 1 1 . Scrap Searched . | . . . . Spaces Dug 18 | . . . 18 Terrain Destroyed 311 | . . 26 285 Melee . | . . . . Projectile . | . . . . AOE 311 | . . 26 285 Actions | -11 -10 -9 -8 --------- Run | Scr Mat Mat Mat Total 1224 | 54 274 371 525 Wait 38 | . . 22 16 Move 978 | 38 248 300 392 Hop . | . . . . Pick Up 24 | 6 5 3 10 Fast Attach 18 | 6 2 4 6 Attach 11 | . . 2 9 Detach 8 | . 1 2 5 Swap 15 | . 1 6 8 Drop 12 | . 1 9 2 Fire 120 | 4 16 23 77 Melee . | . . . . Ram . | . . . . Kick . | . . . . Crush . | . . . . Escape Stasis . | . . . . Rewire . | . . . . Trap . | . . . . Miscellaneous . | . . . . Route ------- -11/Scrapyard -10/Materials -9/Materials -8/Materials History --------- Turn | Location | Event 20 | -11/Scrapyard | Discovered new exit (range 15) 64 | -11/Scrapyard | Entered Materials 123 | -10/Materials | Discovered new exit (range 6) 308 | -10/Materials | Discovered new exit (range 17) 316 | -10/Materials | Build established: Mutant 364 | -10/Materials | Entered another Materials area 364 | -9/Materials | Evolved 2 slots: Propulsion x1, Weapon x1 659 | -9/Materials | Discovered new exit (range 5) 764 | -9/Materials | Entered another Materials area 764 | -8/Materials | Evolved 2 slots: Utility x2 794 | -8/Materials | Build established: Gunner 810 | -8/Materials | Garrison activated, responded to threat 844 | -8/Materials | Identified exit to Storage 1054 | -8/Materials | Lost 4 parts (1p1n1u1w) 1157 | -8/Materials | Core integrity fell below 50% 1299 | -8/Materials | Core integrity fell below 20% 1309 | -8/Materials | Garrison activated, responded to threat 1520 | -8/Materials | Destroyed by Lesser Abomination with Katana Last Messages --------------- 01500_ Hungry Anomaly eats Particle Gun. 01501_ Hungry Anomaly eats Hvy. Laser. 01502_ Hungry Anomaly eats Carbon-fiber Leg. 01504_ G-47 Trooper forced to warp away. 01504_ 43 Matter blinks away. 01508_ Frozen by Ice Anomaly. 01509_ G-47 Trooper suffers critical hit. 01510_ G-47 Trooper destroyed. 01511_ 55 Matter blinks away. 01511_ Lesser Abomination absorbs Lgt. Nuclear Core. 01512_ Lesser Abomination forced to warp away. 01515_ Frozen by Ice Anomaly. 01517_ Ice Anomaly freezes B-36 Bruiser. 01517_ Ice Anomaly freezes G-47 Trooper. 01519_ Ice Anomaly freezes B-36 Bruiser. 01519_ Lesser Abomination follow-up attacks with Katana. 01519_ Mni. Grenade Launcher destroyed. 01520_ Ice Anomaly freezes B-36 Bruiser. 01520_ Ice Anomaly freezes G-47 Trooper. 01520_ Lesser Abomination follow-up attacks with Katana. Map ----- +----------------------------------------------------+ | ?????????????????????????????????????????????????? | | ?????????????????????????????????????????????????? | | ?????????????????????????????????????????????????? | | ?????????????????????????????????????????????????? | | ?????????????????????????????????????????????????? | | ?????????????????????????????????????????????????? | | ?????????????????????????????????????????????????? | | ?????????????????????????????????????????????????? | | ?????????????????????????????????????????????????? | | ?????????????????????????????????????????????????? | | ?????????????????????????????????????????????????? | | ????????????????????? ???????????????????????????? | | ?????????????????????% ??????????????????????????? | | ?????????????????????# ??????????????????????????? | | ?????????????????? ?# ??????????????????????????? | | ??????????????????? ?# ?????????????????????????? | | ????????????????????%# b ????????????????????????? | | ???????????????????? #%g ????????????????????????? | | ?????????????????????+ ????????????????????????? | | ?????????????????????# %????????????????????????? | | ?????????????????????# ????????????????????????? | | ?????????????????????# n ????????????????????????? | | ?????????????????????# ????????????????????????? | | ?????????????????????# ################????????? | | ?????????????????????# n % ????????? | | ?????????????????????# % @ % % ????????? | | ?????????????????????# A " %????????? | | ?????????????????????# T ###+##???????????? | | ?????????????????????# " #????????????????? | | ?????????????????????# #????????????????? | | ?????????????????????# #????????????????? | | ?????????????????????# !%""" #????????????????? | | ?????????????????????# %""" #????????????????? | | ?????????????????????# """ #????????????????? | | ???????????########### #????????????????? | | ???????????# # % n #????#######????## | | ???????????# # """ #????# #### | | ???????????# """ # """ n%#????# "" | | ???????????# """ # """ ###### T | | ???????????# """ """%Y % | | ???????????# %G" # ###### ####### | | ???????????# """ ######### ##???####+#####???? | | ???????????# #??????##+###### %! %|/#???? | | ???????????###########??????# # """ [#???? | | ????????????# #??????# # """""[ #???? | | ????????????# % #??##### #%""""" #???? | | ????????????# #### # % # """"" #???? | | ????????????# + # %"" " #% """ #???? | | ????????????# #### # "" # #???? | | ????????????# #??# + % # #???? | +----------------------------------------------------+ Best States ------------- Heat Dissipation 31 Coolant Potential 50 Energy Generation 10 Energy Capacity 250 Matter Stores 300 Matter Capacity 300 Sight Range 16 Terrain Scan Density 10 Jamming Range 8 Evasion (%) 42 Recoil Reduction 2 Item Schematics ----------------- None Robot Schematics ------------------ None Fabricated ------------ Nothing Alien Tech Used ----------------- None Achievements -------------- None Challenges ------------ None Game ------ Seed SegregatorDynamicDatajack Manual? 0 Play Time 00:29:47 Cumulative 175.4 hours Start 2019.10.24 @ 14:21:19 End 2019.10.24 @ 14:51:27 Sessions 1 Manual Loads 0 Difficulty Rogue Special Mode Halloween2019/Abominations Game No. 63 Rogue 63 Adventurer 0 Explorer 0 Win Type - Total 12 Types 9/0/1/1/0/1/0 Lore% 29 Gallery% 69 Achievement% 72 Wizard Run 0 Options --------- ASCII 1 Keyboard 1 Movement Numpad Keybinds 0 Fullscreen 2 Font 20/SmallcapsGlow Map View 66x50 Tactical HUD 1 Map Filters NONE Filters NONE Steam 1 RUN: fbf84876-84b8-4722-948c-4620edcc9661